Cogmind - Beta 10.2 @@@ ROGUE MODE // 2020.12.13 @ 11:09:42 Player: Perseus Result: Destroyed by B-99 Colossus with Linear Accelerator Performance ------------- Evolutions (9) 4500 Regions Visited (32) 6400 Robots Destroyed (359) 1795 Value Destroyed (17541) 17541 Prototype IDs (64) 1280 Alien Tech Used (7) 1400 Bonus (13301) 13301 TOTAL SCORE: 46217 Bonus ------- High Alert Combat Kills 4147 Follower Combat Kills 2892 Entered Garrisons 400 Used RIF Installer 500 Network Hubs Disabled 400 Met Data Miner 300 Met Zhirov 300 Used Core Reset Matrix 3000 Met Sigix 2000 Friendly Fire -638 Cogmind --------- Core Integrity 0/1600 Matter 52/300 Energy 100/100 System Corruption 7% Temperature Cool (0) Movement Core (50) Location -1/Access Parts ------- > --- POWER (3) -------- (None) > --- PROPULSION (6) --- (None) > --- UTILITY (10) ----- Advanced Signal Interpreter Advanced Terrain Scan Processor Advanced Target Analyzer Advanced Hacking Suite > --- WEAPON (6) ------- (None) > --- INVENTORY (4) ---- Gamma Rifle Advanced Micro-nuke Launcher Sigix Containment Pod Peak State ------------ > --- POWER ------------ Quantum Reactor Quantum Reactor Light Quantum Reactor > --- PROPULSION ------- Myomer Leg Myomer Leg Myomer Leg Myomer Leg Centrium Leg Centrium Leg > --- UTILITY ---------- Experimental Power Amplifier Advanced Cooling System Large Storage Unit Advanced Signal Interpreter Advanced Terrain Scan Processor Experimental Targeting Computer Advanced Hacking Suite Matter Drive > --- WEAPON ----------- Phase Gun Railgun Compact Linear Accelerator Sigix Broadsword > --- INVENTORY -------- Myomer Leg Advanced Heat Sink System Restoration Module Subatomic Replicator Phase Gun Phase Gun Phase Gun Advanced Micro-nuke Launcher Sigix Containment Pod [Rating: 196] Favorites ----------- Power Neutrino Core Engine Angular Momentum Engine Power Core Neutrino Core Reactor Light Antimatter Reactor Propulsion Flexi-carbon Leg Treads Armored Heavy Treads Leg Flexi-carbon Leg Wheel Wheel Hover Unit Improved Antigrav System Flight Unit Xenon Bombardment Thruster Utility Advanced Terrain Scan Processor Device Advanced Sensor Array Storage Large Storage Unit Processor Advanced Terrain Scan Processor Hackware Advanced Hacking Suite Protection Centrium Heavy Armor Plating Artifact Matter Drive Weapon Heavy Plasma Cannon Energy Gun Phase Gun Energy Cannon Heavy Plasma Cannon Ballistic Gun KE Penetrator Ballistic Cannon Battle Cannon Launcher Rocket Array Special Weapon Improved Remote Datajack Impact Weapon Powered Hammer Slashing Weapon Sigix Broadsword Piercing Weapon Lance Special Melee Weapon Datajack Build | -11 -10 -10 -9 -9 -8 -8 -8 -7 -7 -7 -6 -6 -6 -6 -5 -5 -5 -5 -5 -4 -4 -4 -4 -4 -4 -4 -4 -3 -3 -2 -2 -1 ------- Run | Scr Mat Min Mat Min Mat Gar Mat Fac Low Low Fac Low Low Dat Pro Fac Upp Upp Zhi Pro Fac Was Fac Ext Cet Arc Hub Res Gar Res Qua Acc Slots Evolved 18 | . . . 2 . 2 . . 2 . . 2 . . . . 2 . . . . 2 . . . . . . 2 . 2 . 2 Power 2 | . . . . . . . . 1 . . . . . . . . . . . . 1 . . . . . . . . . . . Propulsion 4 | . . . . . 1 . . 1 . . . . . . . . . . . . 1 . . . . . . . . 1 . . Utility 8 | . . . 2 . . . . . . . 2 . . . . 1 . . . . . . . . . . . 1 . 1 . 1 Weapon 4 | . . . . . 1 . . . . . . . . . . 1 . . . . . . . . . . . 1 . . . 1 Parts Attached 647 | 7 2 4 6 15 10 10 12 38 19 2 23 39 11 2 18 32 9 4 9 31 30 3 2 23 5 5 40 14 61 63 43 55 Power 63 | 1 . 1 . 3 1 . 1 4 1 1 5 1 . . 1 2 1 . . 1 6 1 . 2 1 1 1 1 7 9 3 7 Engine 16 | 1 . 1 . 1 1 . 1 4 1 . 3 . . . . . 1 . . 1 . . . . . . . . . . . 1 Core 14 | . . . . 2 . . . . . 1 2 1 . . 1 2 . . . . 1 . . 1 . . . 1 . . . 2 Reactor 33 | . . . . . . . . . . . . . . . . . . . . . 5 1 . 1 1 1 1 . 7 9 3 4 Propulsion 102 | 2 . 1 1 3 3 4 3 10 4 . 5 2 . . 1 2 . . 2 1 8 . . 6 . . 8 1 12 10 7 6 Treads 2 | . . . . . . . . . . . . . . . . . . . . . . . . . . . . 1 . . . 1 Leg 95 | 2 . 1 1 2 3 4 3 10 4 . 5 2 . . 1 2 . . 2 1 8 . . 6 . . 6 . 12 10 7 3 Wheel 3 | . . . . 1 . . . . . . . . . . . . . . . . . . . . . . 2 . . . . . Hover 1 | . . . . . . . . . . . . . . . . . . . . . . . . . . . . . . . . 1 Flight 1 | . . . . . . . . . . . . . . . . . . . . . . . . . . . . . . . . 1 Utility 268 | 2 1 1 2 2 1 1 4 11 9 1 6 14 8 . 12 15 4 3 5 19 14 . 2 7 4 2 22 4 25 26 20 21 Device 221 | 1 . . 2 1 1 1 2 7 6 1 2 12 6 . 8 11 4 3 4 17 13 . 2 7 4 2 21 3 23 24 16 17 Storage 11 | . . 1 . . . . 1 . . . 2 . 1 . 2 1 . . . 2 . . . . . . . . . 1 . . Processor 17 | 1 1 . . 1 . . 1 2 2 . 1 . . . . . . . . . 1 . . . . . 1 . . 1 2 3 Hackware 4 | . . . . . . . . . . . . . . . . . . . . . . . . . . . . . 2 . 1 1 Protection 14 | . . . . . . . . 2 1 . 1 2 1 . 2 3 . . 1 . . . . . . . . 1 . . . . Artifact 1 | . . . . . . . . . . . . . . . . . . . . . . . . . . . . . . . 1 . Weapon 214 | 2 1 1 3 7 5 5 4 13 5 . 7 22 3 2 4 13 4 1 2 10 2 2 . 8 . 2 9 8 17 18 13 21 Energy Gun 79 | 2 . 1 1 1 1 2 3 5 2 . 1 6 1 . 1 . 1 . . 4 . 2 . 4 . . 5 4 12 7 4 9 Energy Cannon 29 | . . . . . . . . . 2 . 2 2 1 1 1 5 2 . . 2 . . . 1 . 1 1 2 1 4 1 . Ballistic Gun 52 | . . . 2 6 2 3 . 5 . . 3 5 . . 1 . . . . . 2 . . 2 . 1 3 2 3 5 3 4 Ballistic Cannon 18 | . 1 . . . 1 . . . . . . 1 1 . . 3 . 1 1 4 . . . . . . . . 1 . 3 1 Launcher 14 | . . . . . 1 . . 1 . . 1 4 . . . 2 1 . . . . . . . . . . . . 2 . 2 Special Weapon 11 | . . . . . . . . . . . . 4 . 1 1 3 . . 1 . . . . 1 . . . . . . . . Impact Weapon 1 | . . . . . . . . . 1 . . . . . . . . . . . . . . . . . . . . . . . Slashing Weapon 4 | . . . . . . . . . . . . . . . . . . . . . . . . . . . . . . . 2 2 Piercing Weapon 3 | . . . . . . . . . . . . . . . . . . . . . . . . . . . . . . . . 3 Special Melee Weapon 3 | . . . . . . . 1 2 . . . . . . . . . . . . . . . . . . . . . . . . Unidentified Prototypes 25 | . . . . . . 1 1 . . . 2 1 . . 2 1 . . 5 . . . . 1 . . . 2 . 3 6 . Parts Lost 168 | . . 2 3 5 3 2 . 19 12 . . 1 . . . 1 . 1 . 6 1 . . 6 1 2 19 . 11 15 10 48 Power 23 | . . 1 . 1 1 . . 3 2 . . . . . . . . . . . . . . . . . 3 . . 2 2 8 Propulsion 40 | . . . 2 1 2 . . 7 6 . . . . . . . . . . . . . . 1 . . 7 . 1 1 . 12 Utility 28 | . . . . 1 . . . 2 1 . . . . . . . . 1 . . . . . . 1 . 3 . 1 3 3 12 Weapon 77 | . . 1 1 2 . 2 . 7 3 . . 1 . . . 1 . . . 6 1 . . 5 . 2 6 . 9 9 5 16 Highest Loss Streak 14 | . . 2 3 3 3 2 . 5 7 . . 1 . . . 1 . 1 . 4 1 . . 6 1 2 9 . 3 3 5 14 Average Slot Usage (%) 92 | . 100 99 98 89 98 99 100 91 47 30 88 99 100 100 99 99 99 99 98 99 99 100 100 99 100 100 98 80 91 97 96 73 Engine 3 | . 14 13 11 2 5 9 9 14 4 . 7 5 . . . . 1 5 5 4 . . . . . . . . . . . . Core 4 | . . . . 7 2 . . . . . 2 6 13 13 13 11 9 5 5 5 5 5 5 5 5 5 4 4 3 . . 1 Reactor 2 | . . . . . . . . . . . . . . . . . . . . . 9 10 10 10 10 10 9 . 7 12 12 7 Leg 22 | . 28 28 21 15 26 27 27 27 6 . 21 26 26 26 26 23 23 23 22 23 26 26 26 25 26 26 24 14 22 25 26 14 Device 14 | . 14 7 22 16 18 18 18 11 13 15 13 11 12 13 12 11 12 16 15 16 14 15 15 15 15 15 14 13 13 23 18 13 Storage 5 | . . 6 11 11 9 9 9 7 . . 5 6 6 6 6 5 5 5 5 5 5 5 5 5 5 5 5 4 4 4 4 3 Processor 15 | . 14 14 11 11 9 9 9 7 15 15 14 20 20 20 20 17 17 17 17 17 15 15 15 15 15 15 15 14 9 7 10 12 Energy Gun 5 | . 22 13 10 3 14 10 8 8 2 . 5 4 . . . 2 4 5 5 4 5 5 5 7 10 1 2 6 10 8 6 8 Energy Cannon 3 | . . . . . . . . . 1 . 1 1 5 3 5 3 2 5 5 4 5 5 5 2 . 3 4 . 5 3 1 . Ballistic Gun 4 | . . . 5 18 12 12 18 9 . . 8 11 5 . . 5 5 4 . . 7 10 10 9 10 14 12 14 4 5 6 3 Ballistic Cannon 4 | . 5 14 6 . . 3 . . . . . . 6 13 12 8 8 5 8 10 2 . . . . . . . . 2 1 . Naked Turns . | . . . . . . . . . . . . . . . . . . . . . . . . . . . . . . . . . Heaviest Build 121 | 8 9 16 19 25 30 33 39 50 46 3 51 54 94 75 86 89 86 86 87 102 113 107 107 109 105 112 113 78 115 121 115 119 Greatest Support 164 | 20 20 20 20 30 40 35 47 67 60 3 80 80 80 80 88 88 88 88 108 108 140 140 140 140 130 130 130 70 115 164 163 160 Greatest Overweight (x) 2 | . . . 1 2 1 1 . 1 2 . . . 1 . 1 1 . . . . . . . . . . . 1 1 . . 2 Average Overweight (x) . | . . . . . . . . . . . . . . . . . . . . . . . . . . . . . . . . . Largest Inventory Capacity 14 | 4 4 8 8 8 8 8 10 10 10 4 10 10 12 12 12 12 10 10 10 14 14 10 10 10 10 10 10 10 10 10 10 10 Average Capacity 9 | 4 4 5 8 8 8 8 8 10 4 4 9 10 11 12 11 10 10 10 10 10 10 10 10 10 10 10 10 10 10 10 10 9 Most Carried 14 | 4 4 6 8 8 8 8 10 10 10 4 10 10 12 12 12 11 10 10 10 14 13 10 10 10 10 10 10 10 10 10 10 10 Average Carried 8 | 2 3 4 6 7 7 7 8 8 4 3 8 9 10 12 11 9 9 9 9 8 10 9 10 9 9 8 9 7 9 9 9 8 Final Capacity 14 | 4 4 8 8 8 8 8 10 10 4 4 10 10 12 12 12 10 10 10 10 14 10 10 10 10 10 10 10 10 10 10 10 4 Final Carried 14 | 3 4 5 6 8 7 8 10 10 4 4 10 10 12 12 12 10 10 10 10 14 10 10 10 10 10 10 10 10 10 9 10 4 Class Distribution -------------------- 31% | Scavenger-Mutant 19% | Mutant 16% | Scavenger-Skirmisher 9% | Skirmisher 8% | Commander-Mutant 6% | Scavenger-Gunner Dominant Class ---------------- Mutant | -10/Materials Mutant | -10/Mines Scavenger-Mutant | -9/Materials Scavenger-Mutant | -9/Mines Scavenger-Skirmisher | -8/Materials Scavenger-Skirmisher | -8/Garrison Scavenger-Skirmisher | -8/Materials Scavenger-Skirmisher | -7/Factory Mutant | -7/Lower Caves Scout | -7/Lower Caves Skirmisher | -6/Factory Mutant | -6/Lower Caves Derelict-Mutant | -6/Lower Caves Skirmisher | -6/Data Miner Skirmisher | -5/Proximity Caves Scavenger-Mutant | -5/Factory Scavenger-Mutant | -5/Upper Caves Scavenger-Mutant | -5/Upper Caves Mutant | -5/Zhirov Commander-Mutant | -4/Proximity Caves Scavenger-Skirmisher | -4/Factory Scavenger-Mutant | -4/Waste Scavenger-Skirmisher | -4/Factory Scavenger-Skirmisher | -4/Extension Scavenger-Tank | -4/Cetus Scavenger-Skirmisher | -4/Archives Scavenger-Skirmisher | -4/Hub_04(d) Scavenger-Skirmisher | -3/Research Scavenger-Mutant | -3/Garrison Scavenger-Gunner | -2/Research Scavenger-Mutant | -2/Quarantine Scavenger-Executioner | -1/Access Resources | -11 -10 -10 -9 -9 -8 -8 -8 -7 -7 -7 -6 -6 -6 -6 -5 -5 -5 -5 -5 -4 -4 -4 -4 -4 -4 -4 -4 -3 -3 -2 -2 -1 ----------- Run | Scr Mat Min Mat Min Mat Gar Mat Fac Low Low Fac Low Low Dat Pro Fac Upp Upp Zhi Pro Fac Was Fac Ext Cet Arc Hub Res Gar Res Qua Acc Matter Collected 13664 | 270 32 138 154 342 151 345 410 831 270 25 282 769 172 . 360 457 530 102 . 1897 465 30 20 280 114 241 710 . 1460 1275 864 668 Remotely . | . . . . . . . . . . . . . . . . . . . . . . . . . . . . . . . . . Salvage Created 18912 | 241 204 232 208 391 354 345 751 1234 424 . 294 784 225 . 159 779 446 482 . 1934 616 . . 199 80 308 898 50 1826 2674 1686 1088 Parts 848 | 19 18 12 25 33 24 12 40 68 10 . 14 25 11 . 9 50 11 12 . 59 32 . . 10 6 7 43 3 67 108 64 56 Haulers Intercepted 4 | . . . . . 1 . . . . . . 1 . . . . . . . . 1 . . . . . . . . 1 . . Recyclers Shooed 10 | . 1 . . . . . 3 . . . . . . . . 2 . . . 2 . . . 1 . . . . . 1 . . Parts Field Recycled . | . . . . . . . . . . . . . . . . . . . . . . . . . . . . . . . . . Retrieved Matter . | . . . . . . . . . . . . . . . . . . . . . . . . . . . . . . . . . Parts Self-Destructed 105 | . . . . . . . . . 4 . . 24 7 . 22 . 1 3 . 44 . . . . . . . . . . . . Prevented 20 | . . . . . . . . . 1 . . . 1 . . . . 8 . 10 . . . . . . . . . . . . Kills | -11 -10 -10 -9 -9 -8 -8 -8 -7 -7 -7 -6 -6 -6 -6 -5 -5 -5 -5 -5 -4 -4 -4 -4 -4 -4 -4 -4 -3 -3 -2 -2 -1 ------- Run | Scr Mat Min Mat Min Mat Gar Mat Fac Low Low Fac Low Low Dat Pro Fac Upp Upp Zhi Pro Fac Was Fac Ext Cet Arc Hub Res Gar Res Qua Acc Combat Hostiles Destroyed 257 | . 2 5 4 10 12 7 11 24 5 . . 17 3 . 6 17 9 2 . 18 7 . . 1 1 4 10 . 23 27 18 14 Melee 6 | . . . . . . . . . . . . . . . . . . . . . . . . . . . . . . . 4 2 Guns 137 | . 2 3 2 10 9 3 11 18 3 . . 4 . . . 4 2 2 . 1 4 . . 1 1 3 6 . 19 17 7 5 Cannons 64 | . . 1 2 . . 4 . . . . . 1 3 . 6 7 . . . 16 3 . . . . 1 4 . 4 7 4 1 AOE 41 | . . 1 . . 3 . . 6 1 . . 12 . . . 6 7 . . . . . . . . . . . . 1 . 4 Classes Destroyed 24 | 3 3 1 2 1 1 . 1 4 . . . 2 . . . 1 1 1 . 1 . . . . . . . . . . 1 1 Worker 18 | 1 1 . . . 1 . 1 4 . . . . . . . 4 . . . . . . . . . . 3 . . 1 1 1 Builder 20 | . 2 1 . 2 . . 1 4 . . . . . . . 3 . . . 2 1 . . . . . 2 . . 1 1 . Tunneler 14 | 5 1 . . 2 . . . 3 . . . . . . . 2 . . . . . . . . . . . . . 1 . . Hauler 4 | . . . . . 1 . . . . . . 1 . . . . . . . . 1 . . . . . . . . 1 . . Recycler 14 | 1 . 1 . 1 . . 2 1 . . 2 . . . . . . . . 2 . . . 1 . . 1 . . 1 . 1 Minesweeper 2 | . . . . . . . . . . . . . . . . . . 2 . . . . . . . . . . . . . . Mechanic 2 | . . . . . . . . 1 . . . . . . . 1 . . . . . . . . . . . . . . . . Operator 3 | . . . 1 . . . . . . . . . . . . . . . . . 1 . . . . . . . . 1 . . Watcher 22 | . 1 . 2 . 1 1 1 . . . 1 . . . . . . . . 2 1 . . 1 . . 2 1 . 4 1 3 Swarmer 41 | . . 3 . 6 7 . . . 1 . . 5 2 . 5 3 1 1 . . 1 . . . . . . . 3 . . 3 Grunt 120 | . 2 2 1 3 3 7 6 16 4 . . 12 . . . 7 4 . . 6 1 . . . . . 3 . 19 9 14 1 Brawler 5 | . . . . . . . . 1 . . . . . . . 1 . . . 2 . . . . . . . . . . 1 . Duelist 9 | . . . . . . . 1 3 . . . . . . . 2 2 . . 1 . . . . . . . . . . . . Protector 2 | . . . . . . . . . . . . . . . . 1 . . . 1 . . . . . . . . . . . . Researcher 2 | . . . . . . . . . . . . . . . . . . . . . . . . . . . . . . . 2 . Sentry 30 | . . . 3 . 2 . 4 2 . . . . 1 . 1 . 1 1 . 4 . . . . . 4 1 . . 4 . 2 Demolisher 1 | . . . . 1 . . . . . . . . . . . . . . . . . . . . . . . . . . . . Hunter 18 | . . . . . . . . 1 . . . . . . . 2 . . . . 3 . . 1 . . 4 . . 5 . 2 Programmer 26 | . . . . . . . . 1 . . . . . . . 1 . . . 2 2 . . . . . 2 . . 9 3 6 Behemoth 3 | . . . . . . . . . . . . . . . . . . . . 2 . . . . . . . . 1 . . . Cetus Guard 1 | . . . . . . . . . . . . . . . . . . . . . . . . . 1 . . . . . . . Decomposer 10 | . . . . . . . . . . . . 5 . . . . 3 1 . 1 . . . . . . . . . . . . Samaritan 2 | . . . . . . . . . . . . 1 1 . . . . . . . . . . . . . . . . . . . Tinkerer 1 | . . . . . . . . . . . . 1 . . . . . . . . . . . . . . . . . . . . Assembled 1 | . . . . . . . . . . . . . . . . . . . . . . . . . . . . . . . . 1 Savage 1 | . . . . . . . . . . . . . 1 . . . . . . . . . . . . . . . . . . . Mutant 1 | . . . . . . . . . . . . . . . . . 1 . . . . . . . . . . . . . . . Best Kill Streak 11 | 5 5 3 2 3 7 3 7 9 4 . 1 6 2 . 4 11 7 1 . 3 3 . . 2 1 2 7 1 4 9 6 3 Combat Bots Only 8 | . 2 3 1 2 5 3 3 8 4 . . 6 2 . 4 5 7 1 . 3 3 . . 1 1 2 5 . 4 8 6 3 Max Kills in Single Turn 4 | 1 1 1 1 1 2 1 1 3 1 . 1 4 2 . 1 3 4 1 . 1 1 . . 2 1 1 2 1 2 2 2 2 Gunslinging . | . . . . . . . . . . . . . . . . . . . . . . . . . . . . . . . . . Exploded 4 | . . 1 . . 1 . . 3 1 . . 4 . . . 2 4 . . . . . . . . . . . . 1 . 1 Melee 1 | . . . . . . . . . . . . . . . . . . . . . . . . . . . . . . . 1 1 Uniques/NPCs Destroyed . | . . . . . . . . . . . . . . . . . . . . . . . . . . . . . . . . . Combat | -11 -10 -10 -9 -9 -8 -8 -8 -7 -7 -7 -6 -6 -6 -6 -5 -5 -5 -5 -5 -4 -4 -4 -4 -4 -4 -4 -4 -3 -3 -2 -2 -1 -------- Run | Scr Mat Min Mat Min Mat Gar Mat Fac Low Low Fac Low Low Dat Pro Fac Upp Upp Zhi Pro Fac Was Fac Ext Cet Arc Hub Res Gar Res Qua Acc Damage Taken 32279 | . 105 258 431 671 501 481 432 2275 1315 . . 797 157 . 354 884 413 59 . 1241 496 . . 1303 407 267 2680 469 3102 3483 2837 6861 Core 3916 | . 18 12 83 129 80 50 16 236 441 . . 77 . . . 29 39 12 . 186 26 . . 135 10 71 259 49 139 224 192 1403 Absorbed by Shields 3638 | . . . . . . . . 153 . . . . . . . 752 259 63 . 462 521 . . 393 424 280 331 . . . . . Core Remaining (%) 67 | 100 . 88 . 47 . . 73 . . 3 . . . . 90 . . . . 73 . . . . . . 56 . 85 . 64 . Volleys Fired 1626 | 17 23 23 27 51 36 28 36 89 26 . 23 69 15 5 11 57 44 69 3 502 26 . 2 17 8 17 52 10 144 95 56 45 Largest 6 | 2 2 2 2 2 3 3 3 3 2 . 3 3 3 1 3 4 1 4 1 4 4 . 1 4 4 4 4 4 5 5 5 6 Hottest 467 | 90 90 85 79 60 125 162 125 158 115 . 193 210 157 30 186 261 90 227 40 297 274 . 90 250 206 206 254 171 435 372 315 467 Shots Fired 3345 | 34 46 40 53 98 107 77 108 225 32 . 43 106 31 5 31 126 44 78 3 608 84 . 2 47 32 68 160 22 294 402 166 173 Gun 2278 | 34 39 17 36 98 104 58 108 215 23 . 30 70 15 . . 38 38 59 . 259 47 . . 34 32 56 110 16 208 277 110 147 Cannon 1002 | . 7 23 17 . . 19 . . 9 . 13 18 16 . 30 79 2 19 . 349 37 . 2 11 . 12 50 6 86 123 56 18 Launcher 43 | . . . . . 3 . . 10 . . . 10 . . . 6 4 . . . . . . . . . . . . 2 . 8 Special 22 | . . . . . . . . . . . . 8 . 5 1 3 . . 3 . . . . 2 . . . . . . . . Kinetic 1480 | . 7 23 30 92 53 48 72 132 1 . 18 31 16 . 20 57 17 16 . 196 38 . . 14 16 47 96 12 116 141 106 65 Thermal 1304 | 17 23 1 6 6 51 29 36 72 23 . 25 44 8 . 10 60 2 16 . 385 26 . 2 24 8 16 43 10 156 145 17 43 Explosive 43 | . . . . . 3 . . 10 . . . 10 . . . 6 4 . . . . . . . . . . . . 2 . 8 Electromagnetic 496 | 17 16 16 17 . . . . 11 8 . . 13 7 . . . 21 46 . 27 20 . . 7 8 5 21 . 22 114 43 57 Robot Hit Streak 45 | 9 13 7 13 8 11 6 14 14 7 . 6 15 8 2 5 10 12 19 22 36 39 . . 45 11 21 14 1 33 19 23 15 Robot Miss Streak 9 | 3 3 5 4 5 5 5 5 4 2 . 2 2 3 1 5 4 2 9 . 4 4 . . 1 1 1 3 3 3 8 3 4 Penetration Max 1 | . . . . . . . 1 1 . . 1 . . . . 1 . . . 1 . . . 1 1 1 1 . 1 1 1 . Secondary Targets 6 | . . . . . 2 . . 3 . . . 1 . . . . . . . . . . . . . . . . . . . . Max Gunslinging Chain 1 | . . . . . 1 . . 1 . . . 1 . . . . . . . . . . . . . . . . . . . . Shots Hit Robots 1905 | 21 34 20 33 55 60 37 68 152 22 . 18 66 17 3 13 51 36 42 3 242 46 . . 36 27 51 88 5 174 254 112 119 Core Hits 855 | 7 11 9 11 23 27 17 26 79 17 . 9 73 8 . 7 72 52 15 . 62 22 . . 10 4 14 37 2 59 92 44 46 Critical Hits 115 | . . 1 1 . . 7 2 1 . . . . . . 1 1 1 . . 45 2 . . 3 . 4 3 . 23 5 9 6 Critical Kills 41 | . . . . . . 4 . 1 . . . . . . . . . . . 9 . . . 1 . 1 3 . 10 4 6 2 Critical Parts Destroyed 49 | . . 1 1 . . 3 1 . . . . . . . 1 1 1 . . 16 2 . . 2 . 2 . . 12 1 3 2 Melee Attacks 56 | . . . . . . . . 13 3 . . . . . . . . . . . . . . . . . . . . . 27 13 Impact 3 | . . . . . . . . . 3 . . . . . . . . . . . . . . . . . . . . . . . Slashing 28 | . . . . . . . . . . . . . . . . . . . . . . . . . . . . . . . 27 1 Piercing 12 | . . . . . . . . . . . . . . . . . . . . . . . . . . . . . . . . 12 Sneak Attacks 17 | . . . . . . . . 13 . . . . . . . . . . . . . . . . . . . . . . 4 . Combat Hostiles 8 | . . . . . . . . 8 . . . . . . . . . . . . . . . . . . . . . . . . Follow-up Attacks 2 | . . . . . . . . . . . . . . . . . . . . . . . . . . . . . . . . 2 Damage Inflicted 51205 | 320 505 389 558 582 1334 719 1517 3978 645 . 479 2756 345 . 403 3261 1875 741 . 4975 1257 . . 996 621 1328 2427 97 3224 6756 4336 4781 Guns 25250 | 283 367 128 394 582 617 533 1418 2713 235 . 450 932 103 . . 678 477 486 . 604 681 . . 747 621 1044 1345 97 2108 4013 1526 2068 Cannons 13928 | . 72 157 164 . . 186 . . 200 . 29 178 242 . 403 904 33 105 . 4318 576 . . 249 . 284 821 . 1116 2287 1119 485 Explosions 9966 | 37 66 104 . . 717 . 99 1265 153 . . 1646 . . . 1675 1356 150 . 53 . . . . . . 261 . . 456 . 1928 Melee 1973 | . . . . . . . . . . . . . . . . . . . . . . . . . . . . . . . 1691 282 Ramming 88 | . . . . . . . . . 57 . . . . . . 4 9 . . . . . . . . . . . . . . 18 Kinetic 17397 | . 72 157 311 534 200 449 986 1687 . . 295 339 103 . 282 814 243 138 . 2019 401 . . 358 366 867 1113 49 826 2125 1432 1231 Thermal 15641 | 162 265 104 78 48 417 270 432 1083 484 . 184 646 182 . 121 825 33 217 . 2430 472 . . 518 119 380 886 48 2133 2163 237 704 Explosive 8712 | . . . . . 717 . 99 1070 . . . 1588 . . . 1618 1356 . . . . . . . . . . . . 456 . 1808 Electromagnetic 7394 | 158 168 128 169 . . . . 138 104 . . 183 60 . . . 234 386 . 526 384 . . 120 136 81 428 . 265 2012 976 738 Impact . | . . . . . . . . . . . . . . . . . . . . . . . . . . . . . . . . . Slashing 1691 | . . . . . . . . . . . . . . . . . . . . . . . . . . . . . . . 1691 . Piercing 282 | . . . . . . . . . . . . . . . . . . . . . . . . . . . . . . . . 282 Highest Corruption 17 | . . . . 1 3 3 3 3 3 . . . . . . 2 . . . . 1 . . . 2 2 17 . 6 3 7 7 Average Corruption 2 | . . . . 1 1 3 3 2 2 . . . . . . 1 . . . . 1 . . . 1 2 1 . 4 1 1 3 Corruption Purged 22 | . . . . . . . . . 3 . . . . . . 2 . . . . 1 . . . . . 2 . 6 7 1 . Effects 98 | . . . . 2 2 12 14 20 3 . . . . . . 1 . . . . 2 . . . 1 3 8 . 6 4 5 15 Message Errors 16 | . . . . . 1 1 3 5 1 . . . . . . . . . . . . . . . . 1 . . 1 2 . 1 Matter Fused 15 | . . . . . . 3 2 2 1 . . . . . . . . . . . . . . . . . 2 . 3 . . 2 Heat Flow Errors 10 | . . . . . . 1 1 3 . . . . . . . . . . . . . . . . . . 1 . 1 . 1 2 Energy Discharges 14 | . . . . . . 1 2 . 1 . . . . . . 1 . . . . 1 . . . . . 1 . 1 1 1 4 Parts Rejected 1 | . . . . . . . . . . . . . . . . . . . . . . . . . . . . . . . . 1 Data Loss (minor) 18 | . . . . 2 1 2 2 4 . . . . . . . . . . . . 1 . . . 1 . 1 . . 1 2 1 Targeting Errors 22 | . . . . . . 3 4 5 . . . . . . . . . . . . . . . . . 2 3 . . . 1 4 Weapon Failures 2 | . . . . . . 1 . 1 . . . . . . . . . . . . . . . . . . . . . . . . Overload Shots . | . . . . . . . . . . . . . . . . . . . . . . . . . . . . . . . . . Overflow Damage 1079 | . . 5 9 . 62 . 12 64 72 . . 64 6 . 11 39 3 6 . 56 5 . . . . . 78 . 30 102 350 105 Projectiles 383 | . . 5 9 . . . . . 32 . . 38 6 . 11 24 . . . 56 5 . . . . . 65 . 30 52 50 . Explosions 395 | . . . . . 62 . 12 64 39 . . 26 . . . 15 3 6 . . . . . . . . 13 . . 50 . 105 Melee 301 | . . . . . . . . . 1 . . . . . . . . . . . . . . . . . . . . . 300 . Knockbacks 31 | . . 1 1 . . 4 . . . . . . . . 2 1 . . . 1 2 . . . . . . . . 9 8 2 Impact . | . . . . . . . . . . . . . . . . . . . . . . . . . . . . . . . . . Kinetic 29 | . . 1 1 . . 3 . . . . . . . . 2 1 . . . 1 2 . . . . . . . . 8 8 2 Secondary 2 | . . . . . . 1 . . . . . . . . . . . . . . . . . . . . . . . 1 . . Self-Inflicted Damage 737 | . 29 35 . . 18 . 61 . 68 . . 20 . . . 101 4 . . . . . . . . . 188 . . . . 213 Shots 15 | . 1 1 . . 1 . 1 . 1 . . 1 . . . 3 . . . . . . . . . . 2 . . . . 4 Rammed 19 | . . . . . . . . . 14 . . . . . . . 1 . . . . . . . . . . . . . . 4 Targets Rammed 27 | . . . . . . . . . 21 . . . . . . 1 1 . . . . . . . . . . . . . . 4 Kicked 8 | . . . . . . . . . 7 . . . . . . 1 . . . . . . . . . . . . . . . . Crushed . | . . . . . . . . . . . . . . . . . . . . . . . . . . . . . . . . . Highest Temperature 439 | 210 197 93 4 . 35 297 171 232 342 . 216 246 391 18 246 309 108 165 . 168 439 . 24 320 . . 108 30 333 320 149 193 Average Temperature 69 | 106 81 32 4 . 9 111 15 33 100 . 53 78 109 12 101 84 40 40 . 24 110 . 18 93 . . 29 12 96 107 93 69 Received Heat Transfer 4187 | . 45 93 138 90 162 279 99 779 447 . . 153 12 . 9 157 76 . . 172 12 . . 48 63 36 174 18 486 171 360 108 Effects 6 | . . . . . . . . . . . . . 1 . . 1 . . . . 2 . . 1 . . . . . 1 . . Shutdowns 1 | . . . . . . . . . . . . . . . . . . . . . 1 . . . . . . . . . . . Energy Bleed 3 | . . . . . . . . . . . . . . . . 1 . . . . . . . 1 . . . . . 1 . . Interference 2 | . . . . . . . . . . . . . 1 . . . . . . . 1 . . . . . . . . . . . Siege Activations . | . . . . . . . . . . . . . . . . . . . . . . . . . . . . . . . . . Robots Corrupted 10 | . . . . . . . . . . . . . . . . . . 2 . 1 . . . . . . . . . 2 3 2 Combat Hostiles 7 | . . . . . . . . . . . . . . . . . . . . . . . . . . . . . . 2 3 2 Parts Fried 46 | . 1 . 1 . . . . . 3 . . 1 1 . . . . 3 . 4 . . . 1 1 1 . . . 10 12 7 Impact Corruptions 1 | . . . . . . . . . 1 . . . . . . . . . . . . . . . . . . . . . . . Robots Melted 2 | . . . . . . . . . . . . . . . . . . . . 2 . . . . . . . . . . . . Combat Hostiles 1 | . . . . . . . . . . . . . . . . . . . . 1 . . . . . . . . . . . . Parts Melted 30 | . 1 . . . . . . 3 3 . . 3 . . . 2 . . . 4 2 . . . . . 1 . 2 7 . 2 Heat Transferred 22913 | 370 692 50 185 100 921 605 814 1950 779 . 387 1172 222 . 148 1158 50 200 . 3444 650 . . 681 185 444 938 74 2627 2944 370 753 Parts Sabotaged 3 | . . . . . . . . . . . . . . . . . . . . . . . . . . . . . . . 3 . Parts Stolen . | . . . . . . . . . . . . . . . . . . . . . . . . . . . . . . . . . Parts Stripped . | . . . . . . . . . . . . . . . . . . . . . . . . . . . . . . . . . Power Chain Reactions 11 | 1 1 3 . . . . . . 1 . . 1 . . . . . 2 . . . . . . . . 1 . . . . 1 Missiles Intercepted . | . . . . . . . . . . . . . . . . . . . . . . . . . . . . . . . . . Alert | -11 -10 -10 -9 -9 -8 -8 -8 -7 -7 -7 -6 -6 -6 -6 -5 -5 -5 -5 -5 -4 -4 -4 -4 -4 -4 -4 -4 -3 -3 -2 -2 -1 ------- Run | Scr Mat Min Mat Min Mat Gar Mat Fac Low Low Fac Low Low Dat Pro Fac Upp Upp Zhi Pro Fac Was Fac Ext Cet Arc Hub Res Gar Res Qua Acc Peak Influence 1618 | 35 140 146 237 135 521 693 740 1247 . . 80 . . . . 980 . . . . 1618 559 735 910 392 293 787 419 948 1086 988 728 Initial 563 | . 22 16 17 25 21 338 337 336 . . 61 . . . . 42 . . . . 375 559 391 359 355 132 102 386 210 533 563 508 Average 513 | 15 64 36 133 49 316 517 481 917 . . 27 . . . . 553 . . . . 1327 559 596 635 363 251 403 377 583 734 785 560 Maximum Alert Level 5 | . . . 1 . 2 2 3 4 . . . . . . . 3 . . . . 5 2 3 3 1 1 3 2 3 3 3 3 Low Security (%) 22 | 100 100 100 66 100 18 . . . . . 100 . . . . 19 . . . . . . . . . 22 3 . . . . . Level 1 16 | . . . 33 . 54 24 22 6 . . . . . . . 2 . . . . 3 . 15 5 100 77 55 71 33 . . 10 Level 2 32 | . . . . . 26 75 67 21 . . . . . . . 54 . . . . 3 100 39 67 . . 36 28 30 41 27 86 Level 3 22 | . . . . . . . 9 51 . . . . . . . 24 . . . . 5 . 45 26 . . 3 . 35 58 72 3 Level 4 4 | . . . . . . . . 21 . . . . . . . . . . . . 65 . . . . . . . . . . . Level 5 . | . . . . . . . . . . . . . . . . . . . . . 21 . . . . . . . . . . . High Security . | . . . . . . . . . . . . . . . . . . . . . . . . . . . . . . . . . Max Security . | . . . . . . . . . . . . . . . . . . . . . . . . . . . . . . . . . Squads Dispatched 53 | . 1 . 2 . 1 . 2 9 . . 1 . . . . 7 . . . . 7 . 1 2 . . 3 1 . 5 8 3 Investigation 7 | . 1 . . . . . 2 3 . . . . . . . . . . . . . . . . . . 1 . . . . . Extermination 13 | . . . . . . . . 2 . . 1 . . . . 1 . . . . 1 . 1 . . . 1 . . 3 2 1 Reinforcement 16 | . . . 2 . . . . 1 . . . . . . . 2 . . . . 3 . . 2 . . 1 1 . 1 1 2 Assault 13 | . . . . . . . . 2 . . . . . . . 4 . . . . 2 . . . . . . . . 1 4 . Garrison 4 | . . . . . 1 . . 1 . . . . . . . . . . . . 1 . . . . . . . . . 1 . Intercept . | . . . . . . . . . . . . . . . . . . . . . . . . . . . . . . . . . Construction Impeded 3 | . . . . . . . . . . . . . . . . 1 . . . . 1 . . . . . . . . . . 1 Haulers Reinforced 4 | . . . . . . . . . . . . . . . . . . . . . 1 . . . . . 1 . . 1 . 1 Stealth | -11 -10 -10 -9 -9 -8 -8 -8 -7 -7 -7 -6 -6 -6 -6 -5 -5 -5 -5 -5 -4 -4 -4 -4 -4 -4 -4 -4 -3 -3 -2 -2 -1 --------- Run | Scr Mat Min Mat Min Mat Gar Mat Fac Low Low Fac Low Low Dat Pro Fac Upp Upp Zhi Pro Fac Was Fac Ext Cet Arc Hub Res Gar Res Qua Acc Distress Signals 23 | . . . 1 . 2 . 2 3 . . . . . . . 2 . . . 1 4 . 1 1 1 . 1 . . 2 . 2 Communications Jammed . | . . . . . . . . . . . . . . . . . . . . . . . . . . . . . . . . . Distress Signals . | . . . . . . . . . . . . . . . . . . . . . . . . . . . . . . . . . Times Spotted 524 | . 3 5 12 37 19 12 14 38 14 2 3 24 5 . 13 37 9 2 . 20 27 . 3 21 11 9 23 6 28 41 38 48 Peak Tracking Total 23 | . 2 3 4 23 6 6 4 8 4 4 1 6 4 . 7 11 9 2 . 5 6 . 2 8 6 1 6 4 5 6 8 8 Tactical Retreats 50 | . . . 2 3 2 6 2 . 4 2 . 3 . . . . 1 1 . 11 . . . . . . . 1 3 . 3 6 Traps | -11 -10 -10 -9 -9 -8 -8 -8 -7 -7 -7 -6 -6 -6 -6 -5 -5 -5 -5 -5 -4 -4 -4 -4 -4 -4 -4 -4 -3 -3 -2 -2 -1 ------- Run | Scr Mat Min Mat Min Mat Gar Mat Fac Low Low Fac Low Low Dat Pro Fac Upp Upp Zhi Pro Fac Was Fac Ext Cet Arc Hub Res Gar Res Qua Acc Traps Triggered 14 | . . . 3 . 2 1 . . . . . . . . . 1 . . . 1 1 . . . . . 2 . 3 . . . Indirectly . | . . . . . . . . . . . . . . . . . . . . . . . . . . . . . . . . . Trap Hack Attempts 16 | . . . . . . . 16 . . . . . . . . . . . . . . . . . . . . . . . . . Triggered . | . . . . . . . . . . . . . . . . . . . . . . . . . . . . . . . . . Disarmed 1 | . . . . . . . 1 . . . . . . . . . . . . . . . . . . . . . . . . . Reprogrammed 7 | . 6 . . . . . 1 . . . . . . . . . . . . . . . . . . . . . . . . . Reused 7 | . 1 . . 3 . . . . . . . . . . . . . 2 . 1 . . . . . . . . . . . . Traps Extracted . | . . . . . . . . . . . . . . . . . . . . . . . . . . . . . . . . . Installed 9 | . . . . 3 . . . . 1 . . . . . . . . 4 . 1 . . . . . . . . . . . . Triggered 8 | . 1 . . 3 . . . . . . . . . . . . . 3 . 1 . . . . . . . . . . . . Machines | -11 -10 -10 -9 -9 -8 -8 -8 -7 -7 -7 -6 -6 -6 -6 -5 -5 -5 -5 -5 -4 -4 -4 -4 -4 -4 -4 -4 -3 -3 -2 -2 -1 ---------- Run | Scr Mat Min Mat Min Mat Gar Mat Fac Low Low Fac Low Low Dat Pro Fac Upp Upp Zhi Pro Fac Was Fac Ext Cet Arc Hub Res Gar Res Qua Acc Machines Disabled 88 | . . 4 2 . 2 . 5 5 . . . 2 . . . 10 1 . . 6 16 . 1 4 . 2 13 . 5 3 4 3 Max in Single Turn 4 | . . 1 1 . 1 . 2 4 . . . 1 . . . 4 1 . . 1 . . 1 1 . 1 3 . 1 1 1 1 Garrison Access 11 | . . . . . . . . 2 . . 2 . . . . 1 . . . . 1 . . . . . 1 . . 1 1 2 Garrison Relay 4 | . . . . . . . . . . . . . . . . . . . . . . . . . . . . . 4 . . . Network Hub 2 | . . . . . . . . . . . . . . . . . . . . . . . . . . . 2 . . . . . Machines Sabotaged . | . . . . . . . . . . . . . . . . . . . . . . . . . . . . . . . . . Garrisons Compromised . | . . . . . . . . . . . . . . . . . . . . . . . . . . . . . . . . . Overloaded Fab Kills . | . . . . . . . . . . . . . . . . . . . . . . . . . . . . . . . . . Fab Network Shutdowns . | . . . . . . . . . . . . . . . . . . . . . . . . . . . . . . . . . Hacking | -11 -10 -10 -9 -9 -8 -8 -8 -7 -7 -7 -6 -6 -6 -6 -5 -5 -5 -5 -5 -4 -4 -4 -4 -4 -4 -4 -4 -3 -3 -2 -2 -1 --------- Run | Scr Mat Min Mat Min Mat Gar Mat Fac Low Low Fac Low Low Dat Pro Fac Upp Upp Zhi Pro Fac Was Fac Ext Cet Arc Hub Res Gar Res Qua Acc Machines Accessed 91 | . 5 . 2 2 2 . 4 6 2 . 7 2 2 3 1 7 1 1 5 3 4 . 3 3 . 1 6 2 . 5 8 4 Terminals 47 | . 4 . 1 2 1 . 1 2 . . 5 1 . . 1 4 . . . 1 1 . 3 3 . . 5 . . 3 7 2 Fabricators 4 | . . . . . . . . . . . . . . . . . . . . 1 2 . . . . . . 1 . . . . Repair Stations . | . . . . . . . . . . . . . . . . . . . . . . . . . . . . . . . . . Recycling Units 6 | . 1 . . . . . 2 1 . . . . . . . . . . . 1 . . . . . . . . . 1 . . Scanalyzers 5 | . . . 1 . . . 1 1 . . . . . . . 2 . . . . . . . . . . . . . . . . Garrison Access 13 | . . . . . 1 . . 2 . . 2 . . . . 1 . . . . 1 . . . . . 1 1 . 1 1 2 Total Hacks 252 | . 19 . 6 9 5 . 8 10 7 . 13 6 4 18 1 14 1 1 17 6 10 . 4 7 . 5 16 6 . 16 28 15 Successful 157 | . 14 . 4 5 1 . 4 5 7 . 6 6 4 18 1 6 1 1 17 4 7 . 2 3 . 5 3 4 . 5 19 5 Failed 93 | . 4 . 2 4 4 . 4 5 . . 7 . . . . 8 . . . 2 3 . 2 4 . . 13 2 . 11 8 10 Catastrophic 19 | . . . . . . . 1 1 . . 1 . . . . 2 . . . . 1 . 1 1 . . 4 . . 2 2 3 Database Lockouts 2 | . 1 . . . . . . . . . . . . . . . . . . . . . . . . . . . . . 1 . Manual 123 | . 14 . 4 9 2 . 4 7 . . 9 8 . . 1 8 . . . 2 2 . 2 4 1 . 14 2 . 12 10 8 Terminals 138 | . 18 . 4 9 2 . 2 2 . . 10 5 . . 1 8 . . . 1 3 . 4 7 . . 12 . . 11 27 12 Fabricators 11 | . . . . . . . . . . . . . . . . . . . . 3 4 . . . . . . 4 . . . . Repair Stations . | . . . . . . . . . . . . . . . . . . . . . . . . . . . . . . . . . Recycling Units 8 | . 1 . . . . . 2 1 . . . . . . . . . . . 2 . . . . . . . . . 2 . . Scanalyzers 14 | . . . 2 . . . 4 3 . . . . . . . 5 . . . . . . . . . . . . . . . . Garrison Access 27 | . . . . . 3 . . 4 . . 3 . . . . 1 . . . . 3 . . . . . 4 2 . 3 1 3 Terminal Hacks 98 | . 7 . 2 4 . . . . 7 . 2 6 4 18 1 1 1 1 17 1 1 . 1 1 . 5 . . . 1 16 1 Record 42 | . . . . . . . . . 6 . . 5 3 6 1 . . . 5 . . . . . . 5 . . . . 11 . Part Schematic 8 | . . . . . . . . . . . . . . 4 . . . . 4 . . . . . . . . . . . . . Robot Schematic 5 | . . . . . . . . . . . . . . 5 . . . . . . . . . . . . . . . . . . Robot Analysis 12 | . 1 . 2 4 . . . . . . 1 . . . . . . . 4 . . . . . . . . . . . . . Prototype ID Bank 11 | . 2 . . . . . . . . . 1 . . 3 . . . . 4 . . . . . . . . . . . 1 . Open Door 8 | . . . . . . . . . 1 . . 1 1 . . . 1 1 . 1 . . 1 . . . . . . . 1 . Branch Access Points 2 | . . . . . . . . . . . . . . . . 1 . . . . 1 . . . . . . . . . . . Unreport Threat 3 | . 2 . . . . . . . . . . . . . . . . . . . . . . . . . . . . . . 1 Locate Traps 4 | . 1 . . . . . . . . . . . . . . . . . . . . . . 1 . . . . . 1 1 . Reprogram Traps 1 | . 1 . . . . . . . . . . . . . . . . . . . . . . . . . . . . . . . Recall Reinforcements 1 | . . . . . . . . . . . . . . . . . . . . . . . . . . . . . . . 1 . Recall Assault 1 | . . . . . . . . . . . . . . . . . . . . . . . . . . . . . . . 1 . Fabricator Hacks 7 | . . . . . . . . . . . . . . . . . . . . 2 3 . . . . . . 2 . . . . Load Schematic 4 | . . . . . . . . . . . . . . . . . . . . 1 2 . . . . . . 1 . . . . Build 3 | . . . . . . . . . . . . . . . . . . . . 1 1 . . . . . . 1 . . . . Repair Station Hacks . | . . . . . . . . . . . . . . . . . . . . . . . . . . . . . . . . . Recycling Unit Hacks . | . . . . . . . . . . . . . . . . . . . . . . . . . . . . . . . . . Scanalyzer 9 | . . . 2 . . . 2 2 . . . . . . . 3 . . . . . . . . . . . . . . . . Insert Component 5 | . . . 1 . . . 1 1 . . . . . . . 2 . . . . . . . . . . . . . . . . Analyze 4 | . . . 1 . . . 1 1 . . . . . . . 1 . . . . . . . . . . . . . . . . Garrison Access Hacks 10 | . . . . . 1 . . . . . 2 . . . . . . . . . 2 . . . . . . 1 . 1 1 2 Unlock Access 3 | . . . . . 1 . . . . . . . . . . . . . . . 1 . . . . . . 1 . . . . Seal Access 7 | . . . . . . . . . . . 2 . . . . . . . . . 1 . . . . . . . . 1 1 2 Unauthorized Hacks 33 | . 7 . . 1 . . 2 3 . . 2 . . . . 2 . . . 1 1 . 1 2 . . 3 1 . 3 2 2 Terminals 23 | . 6 . . 1 . . . . . . 2 . . . . 2 . . . . 1 . 1 2 . . 2 . . 2 2 2 Track 1 | . 1 . . . . . . . . . . . . . . . . . . . . . . . . . . . . . . . Botnet 20 | . 4 . . 1 . . . . . . 2 . . . . 1 . . . . 1 . 1 2 . . 2 . . 2 2 2 Operators 2 | . 1 . . . . . . . . . . . . . . 1 . . . . . . . . . . . . . . . . Fabricators 1 | . . . . . . . . . . . . . . . . . . . . . . . . . . . . 1 . . . . Prioritize 1 | . . . . . . . . . . . . . . . . . . . . . . . . . . . . 1 . . . . Repair Stations . | . . . . . . . . . . . . . . . . . . . . . . . . . . . . . . . . . Recycling Units 6 | . 1 . . . . . 2 1 . . . . . . . . . . . 1 . . . . . . . . . 1 . . Recyclers 2 | . . . . . . . . . . . . . . . . . . . . 1 . . . . . . . . . 1 . . Tunnel 4 | . 1 . . . . . 2 1 . . . . . . . . . . . . . . . . . . . . . . . . Scanalyzers . | . . . . . . . . . . . . . . . . . . . . . . . . . . . . . . . . . Garrison Access 3 | . . . . . . . . 2 . . . . . . . . . . . . . . . . . . 1 . . . . . Jam 3 | . . . . . . . . 2 . . . . . . . . . . . . . . . . . . 1 . . . . . Data Cores Recovered 1 | . . . . . . . . . . . . . . . . . . . . . . . . . . . . . . 1 . . Used . | . . . . . . . . . . . . . . . . . . . . . . . . . . . . . . . . . Hacking Detections 59 | . 4 . 2 2 2 . 2 3 . . 5 . . . 1 7 . . . 3 4 . 2 3 . . 6 1 . 5 4 3 Full Trace Events 1 | . . . . . . . . . . . . . . . . . . . . 1 . . . . . . . . . . . . Feedback Events . | . . . . . . . . . . . . . . . . . . . . . . . . . . . . . . . . . Feedback Blocked . | . . . . . . . . . . . . . . . . . . . . . . . . . . . . . . . . . Robot Schematics Acquired 5 | . . . . . . . . . . . . . . 5 . . . . . . . . . . . . . . . . . . Robots Built . | . . . . . . . . . . . . . . . . . . . . . . . . . . . . . . . . . Matter . | . . . . . . . . . . . . . . . . . . . . . . . . . . . . . . . . . Time . | . . . . . . . . . . . . . . . . . . . . . . . . . . . . . . . . . Total Robot Build Rating . | . . . . . . . . . . . . . . . . . . . . . . . . . . . . . . . . . Part Schematics Acquired 11 | . . . 1 . . . 1 . . . . . . 4 . 1 . . 4 . . . . . . . . . . . . . Parts Built 2 | . . . . . . . . . . . . . . . . . . . . . 1 . . . . . . 1 . . . . Matter 486 | . . . . . . . . . . . . . . . . . . . . . 168 . . . . . . 318 . . . . Time 211 | . . . . . . . . . . . . . . . . . . . . . 42 . . . . . . 169 . . . . Total Part Build Rating 10 | . . . . . . . . . . . . . . . . . . . . . 4 . . . . . . 6 . . . . Parts Repaired . | . . . . . . . . . . . . . . . . . . . . . . . . . . . . . . . . . Time . | . . . . . . . . . . . . . . . . . . . . . . . . . . . . . . . . . Parts Recycled . | . . . . . . . . . . . . . . . . . . . . . . . . . . . . . . . . . Recycled Matter . | . . . . . . . . . . . . . . . . . . . . . . . . . . . . . . . . . Retrieved Matter . | . . . . . . . . . . . . . . . . . . . . . . . . . . . . . . . . . Retrieved Components . | . . . . . . . . . . . . . . . . . . . . . . . . . . . . . . . . . Parts Scanalyzed 5 | . . . 1 . . . 1 1 . . . . . . . 2 . . . . . . . . . . . . . . . . Part Schematics Acquired 3 | . . . 1 . . . 1 . . . . . . . . 1 . . . . . . . . . . . . . . . . Parts Damaged 2 | . . . . . . . 1 . . . . . . . . 1 . . . . . . . . . . . . . . . . Bothacking | -11 -10 -10 -9 -9 -8 -8 -8 -7 -7 -7 -6 -6 -6 -6 -5 -5 -5 -5 -5 -4 -4 -4 -4 -4 -4 -4 -4 -3 -3 -2 -2 -1 ------------ Run | Scr Mat Min Mat Min Mat Gar Mat Fac Low Low Fac Low Low Dat Pro Fac Upp Upp Zhi Pro Fac Was Fac Ext Cet Arc Hub Res Gar Res Qua Acc Used RIF Installer 1 | . . . . . . . . . . . . . . . . . . . . . . . . . . . . . 1 . . . Robots Hacked 15 | . . . . . . . . 3 . . . 2 . 3 1 2 . . 3 . . . . 1 . . . . . . . . Non-combat 6 | . . . . . . . . 3 . . . 2 . . 1 . . . . . . . . . . . . . . . . . Combat 7 | . . . . . . . . . . . . . . 3 . 1 . . 3 . . . . . . . . . . . . . Robot Hacks Applied 16 | . . . . . . . . 5 . . . 3 . 3 1 1 . . 3 . . . . . . . . . . . . . parse_system 10 | . . . . . . . . . . . . 2 . 3 1 1 . . 3 . . . . . . . . . . . . . no_distress 1 | . . . . . . . . . . . . 1 . . . . . . . . . . . . . . . . . . . . find_chute 1 | . . . . . . . . 1 . . . . . . . . . . . . . . . . . . . . . . . . find_recycling 4 | . . . . . . . . 4 . . . . . . . . . . . . . . . . . . . . . . . . Manual 2 | . . . . . . . . . . . . . . . . 1 . . . . . . . 1 . . . . . . . . Relay Couplers Released 14 | . . . . . . . . . . . . . . . . 1 . . . . . . . . . . . . 13 . . . Machine Destruction 14 | . . . . . . . . . . . . . . . . 1 . . . . . . . . . . . . 13 . . . Attached 2 | . . . . . . . . . . . . . . . . . . . . . . . . . . . . . 2 . . . Robots Rewired 27 | . . . . . . . . 4 . . . 2 . . . 1 3 . . 11 . . . 6 . . . . . . . . Allies Hacked 6 | . . . . . . . . . . . . . . . . . . . . . 3 . . . 3 . . . . . . . Hacks Repelled . | . . . . . . . . . . . . . . . . . . . . . . . . . . . . . . . . . Allies | -11 -10 -10 -9 -9 -8 -8 -8 -7 -7 -7 -6 -6 -6 -6 -5 -5 -5 -5 -5 -4 -4 -4 -4 -4 -4 -4 -4 -3 -3 -2 -2 -1 -------- Run | Scr Mat Min Mat Min Mat Gar Mat Fac Low Low Fac Low Low Dat Pro Fac Upp Upp Zhi Pro Fac Was Fac Ext Cet Arc Hub Res Gar Res Qua Acc Total Allies 84 | . . . . . . . . 4 . . . 2 2 . 1 2 3 . . 11 . 21 3 16 . . . . . . . 19 Largest Group 24 | . . . . . . . . 4 . . . 2 4 2 3 2 3 3 3 10 10 21 21 24 8 . . . . . . 7 Highest-Rated Group 1095 | . . . . . . . . 81 . . . 78 129 78 172 141 89 89 89 356 356 767 830 1095 401 . . . . . . 97 Highest-Rated Ally 156 | . . . . . . . . 37 . . . 49 49 49 94 81 30 30 30 56 56 50 50 156 115 . . . . . . 15 Total Orders 51 | . . . . . . . . . . . . 6 1 1 . 4 7 4 1 20 4 . 1 . . . . . . 2 . . STAY 28 | . . . . . . . . . . . . 3 1 1 . 2 5 3 1 10 2 . . . . . . . . . . . FOLLOW 18 | . . . . . . . . . . . . 1 . . . 2 2 1 . 10 2 . . . . . . . . . . . EXPLORE 5 | . . . . . . . . . . . . 2 . . . . . . . . . . 1 . . . . . . 2 . . Ally Attacks 552 | . . . . . . . . 59 . . . 1 7 . 22 22 . . . 62 106 . 40 163 38 . . . . . . 32 Total Damage 16375 | . . . . . . . . 841 . . . 25 154 . 403 985 . . . 1095 4314 . 751 5917 1224 . . . . . . 666 Kills 92 | . . . . . . . . 5 . . . 1 2 . 7 9 . . . 1 31 . 8 23 4 . . . . . . 1 Allies Corrupted 2 | . . . . . . . . . . . . . . . . . . . . . . . . 1 . . . . . . . 1 Allies Melted 1 | . . . . . . . . . . . . 1 . . . . . . . . . . . . . . . . . . . . Intel | -11 -10 -10 -9 -9 -8 -8 -8 -7 -7 -7 -6 -6 -6 -6 -5 -5 -5 -5 -5 -4 -4 -4 -4 -4 -4 -4 -4 -3 -3 -2 -2 -1 ------- Run | Scr Mat Min Mat Min Mat Gar Mat Fac Low Low Fac Low Low Dat Pro Fac Upp Upp Zhi Pro Fac Was Fac Ext Cet Arc Hub Res Gar Res Qua Acc Robot Analysis Total 12 | . 1 . 2 4 . . . . . . 1 . . . . . . . 4 . . . . . . . . . . . . . Derelict Logs Recovered 17 | . . 2 . 1 . . . . 2 . . 2 2 . 3 . 1 1 . 3 . . . . . . . . . . . . Drone Launches 6 | . . . . . . . . . . . . 2 . . . . . . . . . . 2 . . . . . . 2 . . Drone Recoveries . | . . . . . . . . . . . . . . . . . . . . . . . . . . . . . . . . . Exploration | -11 -10 -10 -9 -9 -8 -8 -8 -7 -7 -7 -6 -6 -6 -6 -5 -5 -5 -5 -5 -4 -4 -4 -4 -4 -4 -4 -4 -3 -3 -2 -2 -1 ------------- Run | Scr Mat Min Mat Min Mat Gar Mat Fac Low Low Fac Low Low Dat Pro Fac Upp Upp Zhi Pro Fac Was Fac Ext Cet Arc Hub Res Gar Res Qua Acc Turns Passed 44382 | 124 251 850 469 987 364 609 624 1230 3643 116 1389 3012 1396 109 1542 1130 2076 3828 248 9831 788 374 273 663 158 175 893 451 2995 1608 1031 1145 Spaces Moved 25737 | 49 139 637 277 701 180 236 320 657 1539 159 1018 2115 1012 78 1030 721 1529 2063 181 5167 489 305 189 417 98 87 523 305 1269 899 536 812 Core 1406 | 10 . . . . . . . . 947 159 37 . . . . . . . . . . . . . . . . . . . . 253 Treads 60 | . . . . . . . . . . . . . . . . . . . . . . . . . . . . . . . . 60 Legs 23964 | 39 139 637 277 394 180 236 320 657 592 . 981 2115 1012 78 1030 721 1529 2063 181 5167 489 305 189 417 98 87 523 305 1269 899 536 499 Wheels 307 | . . . . 307 . . . . . . . . . . . . . . . . . . . . . . . . . . . . Hover . | . . . . . . . . . . . . . . . . . . . . . . . . . . . . . . . . . Flight . | . . . . . . . . . . . . . . . . . . . . . . . . . . . . . . . . . Fastest Speed 50 | 50 120 120 120 90 120 120 120 122 50 50 50 127 127 127 125 125 125 125 120 120 120 120 120 120 120 120 120 120 120 115 116 50 Average Speed 119 | 105 120 120 121 112 120 124 122 127 77 50 123 127 128 127 127 125 125 125 122 120 120 120 120 120 120 120 120 123 131 116 117 104 Slowest Speed 210 | 120 120 120 150 150 150 150 123 160 155 50 127 127 157 127 157 155 125 125 125 120 120 120 120 120 120 120 120 150 150 120 120 210 Overloaded Moves . | . . . . . . . . . . . . . . . . . . . . . . . . . . . . . . . . . Propulsion Burnouts . | . . . . . . . . . . . . . . . . . . . . . . . . . . . . . . . . . Robots Hopped . | . . . . . . . . . . . . . . . . . . . . . . . . . . . . . . . . . Cave-ins Triggered 1 | . . . . . . . . . . . . . . . . . . . . . . . . . . . . . 1 . . . Teleports 3 | . . . . . . . . . . . . . . . . . . . . . . . . . . . . . . . 1 2 Exploration Rate (%) 54 | 4 34 98 30 99 18 46 33 22 96 16 23 98 98 68 96 19 98 97 60 95 18 95 9 63 49 78 47 12 91 25 50 26 Regions Visited 32 Branch Regions 17 Pre-discovered Areas 15 | . 1 1 . . . . 2 1 2 . . 2 1 1 . . . . 3 1 . . . . . . . . . . . . Known Exits Taken 23 | . . . 1 . 1 . . 1 1 1 1 1 1 1 1 1 1 1 1 1 . . 1 1 1 1 1 1 . 1 1 . Unknown Exits Taken 5 | 1 1 1 . 1 . . 1 . . . . . . . . . . . . . . . . . . . . . . . . . Scrap Searched 25 | . . 1 . 1 . . . . 2 1 . 3 6 . 2 . 2 4 . 3 . . . . . . . . . . . . Spaces Dug 252 | . . . . . . . . . 2 . 11 15 . . . 43 1 13 . 106 6 . 1 . . . 6 6 20 6 16 . Terrain Destroyed 1439 | 2 6 17 . . 71 4 59 62 6 . 12 172 3 . 11 148 50 30 . 122 12 . 1 1 4 17 347 6 50 52 28 146 Melee 10 | . . . . . . . . . 2 . . . . . . . . . . . . . . . . . . . . . 8 . Projectile 420 | . . . . . . 4 2 1 . . 12 10 3 . 11 43 1 14 . 122 12 . 1 1 4 17 34 6 50 46 20 6 AOE 1009 | 2 6 17 . . 71 . 57 61 4 . . 162 . . . 105 49 16 . . . . . . . . 313 . . 6 . 140 Terrain Rammed . | . . . . . . . . . . . . . . . . . . . . . . . . . . . . . . . . . Walls Destroyed . | . . . . . . . . . . . . . . . . . . . . . . . . . . . . . . . . . Machines Disabled . | . . . . . . . . . . . . . . . . . . . . . . . . . . . . . . . . . Actions | -11 -10 -10 -9 -9 -8 -8 -8 -7 -7 -7 -6 -6 -6 -6 -5 -5 -5 -5 -5 -4 -4 -4 -4 -4 -4 -4 -4 -3 -3 -2 -2 -1 --------- Run | Scr Mat Min Mat Min Mat Gar Mat Fac Low Low Fac Low Low Dat Pro Fac Upp Upp Zhi Pro Fac Was Fac Ext Cet Arc Hub Res Gar Res Qua Acc Total 36745 | 86 177 683 358 815 256 501 473 853 3944 195 1116 2335 1081 84 1226 849 1644 3243 206 8224 634 313 233 546 117 115 672 365 2389 1219 776 1017 Wait 7758 | 5 10 11 38 15 20 204 70 15 2299 31 14 68 38 . 160 19 45 1082 . 2375 66 1 39 28 4 . 42 21 841 99 66 32 Move 25708 | 48 138 636 276 700 180 235 319 656 1538 158 1017 2114 1011 77 1029 721 1528 2062 180 5166 489 304 188 416 97 86 522 305 1267 898 535 812 Hop . | . . . . . . . . . . . . . . . . . . . . . . . . . . . . . . . . . Pick Up 352 | 9 2 6 7 17 7 8 6 24 17 2 22 17 3 . 2 6 4 11 3 30 5 2 . 9 1 5 10 10 25 30 18 34 Fast Attach 151 | 1 1 . 2 3 . 2 5 5 4 . 9 5 1 . 6 4 1 1 8 8 7 1 2 6 1 . 6 1 13 11 20 17 Attach 208 | 6 . 2 4 9 6 3 . 21 10 2 8 2 . . . 3 2 1 1 7 3 . . 5 . 4 12 11 16 22 9 39 Detach 26 | . . . . 2 . . 1 3 2 1 2 . . . . 1 . . . . . . . . . . 3 1 3 2 . 5 Swap 294 | . 1 2 . 3 4 5 7 12 5 . 6 32 10 2 12 25 6 2 1 16 20 2 . 12 4 1 22 2 32 30 16 2 Drop 344 | . 2 3 4 12 3 11 13 9 18 1 15 21 3 . 6 13 4 11 10 27 17 3 2 13 2 2 3 4 34 32 29 17 Fire 1626 | 17 23 23 27 51 36 28 36 89 26 . 23 69 15 5 11 57 44 69 3 502 26 . 2 17 8 17 52 10 144 95 56 45 Melee 53 | . . . . . . . . 13 3 . . . . . . . . . . . . . . . . . . . . . 27 10 Ram 4 | . . . . . . . . . . . . . . . . . . . . . . . . . . . . . . . . 4 Kick 22 | . . . . . . . . . 21 . . . . . . . 1 . . . . . . . . . . . . . . . Crush . | . . . . . . . . . . . . . . . . . . . . . . . . . . . . . . . . . Escape Stasis 19 | . . . . . . 5 . . . . . . . . . . . . . . . . . . . . . . 14 . . . Rewire 155 | . . . . . . . . 6 . . . 7 . . . . 9 . . 92 1 . . 40 . . . . . . . . Trap 25 | . . . . 3 . . 16 . 1 . . . . . . . . 4 . 1 . . . . . . . . . . . . Miscellaneous . | . . . . . . . . . . . . . . . . . . . . . . . . . . . . . . . . . Route ------- -11/Scrapyard -10/Materials -10/Mines (discovered 3 exits: *Mat x2 / [*Exi]) -9/Materials (discovered 2 exits: *Min / *Sto) -9/Mines (discovered 2 exits: *Mat x2) -8/Materials -8/Garrison -8/Materials -7/Factory (discovered 2 exits: *Fac / *Low) -7/Lower Caves -7/Lower Caves -6/Factory (discovered 3 exits: Fac / *Low x2) -6/Lower Caves -6/Lower Caves (discovered 2 exits: *Fac / *Dat) -6/Data Miner -5/Proximity Caves -5/Factory (discovered 4 exits: Fac x2 / *Upp x2) -5/Upper Caves -5/Upper Caves (discovered 2 exits: *Fac / *Zhi) -5/Zhirov -4/Proximity Caves -4/Factory (discovered 6 exits: Res / Upp x2 / Ext x2 / Arm) -4/Waste -4/Factory -4/Extension (discovered 3 exits: *Res x2 / *Cet) -4/Cetus -4/Archives (discovered 3 exits: *Res / *Hub x2) -4/Hub_04(d) (discovered 3 exits: *Res x3) -3/Research (discovered 2 exits: Res / Gar) -3/Garrison (discovered 3 exits: *Res x3) -2/Research -2/Quarantine -1/Access History --------- Turn | Location | Event 9 | -11/Scrapyard | Discovered new exit (range 15) 125 | -11/Scrapyard | Entered Materials 318 | -10/Materials | Build established: Mutant 329 | -10/Materials | Central database locked down 335 | -10/Materials | Discovered new exit (range 14) 376 | -10/Materials | Entered Mines 377 | -10/Mines | Learned location of Storage (-9) 410 | -10/Mines | Discovered new exit (range 13) 607 | -10/Mines | Learned location of 1 exit from Materials 692 | -10/Mines | Discovered new exit (range 10) 796 | -10/Mines | Received a Rocket Launcher from a helpful Derelict 1162 | -10/Mines | Deemed a non-threat by the Exiles lab entrance 1162 | -10/Mines | Discovered new exit (range 5) 1226 | -10/Mines | Entered Materials 1226 | -9/Materials | Evolved 2 slots: Utility x2 1227 | -9/Materials | Identified exit to Storage 1228 | -9/Materials | Identified exit to Mines 1533 | -9/Materials | Build established: Scavenger-Mutant 1695 | -9/Materials | Entered Mines 1696 | -9/Mines | Assembled infested the area 1701 | -9/Mines | Assisted by a Guerilla fighting off Assembled 1706 | -9/Mines | Lost 3 parts (2n1w) 1728 | -9/Mines | Learned Materials stockpile data 1764 | -9/Mines | Lost 3 parts (1p1u1w) 1907 | -9/Mines | Found a hidden stash of uninstalled traps 2284 | -9/Mines | Discovered new exit (range 6) 2397 | -9/Mines | Core integrity fell below 50% 2428 | -9/Mines | Discovered new exit (range 10) 2682 | -9/Mines | Entered Materials 2682 | -8/Materials | Evolved 2 slots: Propulsion x1, Weapon x1 2754 | -8/Materials | Garrison activated, responded to threat 2829 | -8/Materials | Lost 3 parts (1p2n) 2974 | -8/Materials | Build established: Scavenger-Skirmisher 3046 | -8/Materials | Identified exit to Garrison 3046 | -8/Materials | Entered Garrison 3530 | -8/Garrison | Triggered checkpoint 3644 | -8/Garrison | Discovered new exit (range 9) 3655 | -8/Garrison | Entered Materials 4191 | -8/Materials | Discovered new exit (range 11) 4279 | -8/Materials | Entered Factory 4279 | -7/Factory | Evolved 2 slots: Power x1, Propulsion x1 4631 | -7/Factory | Garrison activated, responded to threat 4801 | -7/Factory | Lost 5 parts (1n1u3w) 5079 | -7/Factory | First assault squad dispatched 5321 | -7/Factory | Destroyed 8 combat bots 5324 | -7/Factory | Lost 5 parts (1p1n1u2w) 5375 | -7/Factory | Discovered new exit (range 21) 5389 | -7/Factory | Lost 3 parts (2n1w) 5467 | -7/Factory | Identified exit to Factory 5493 | -7/Factory | Discovered new exit (range 12) 5508 | -7/Factory | Identified exit to Lower Caves 5509 | -7/Factory | Entered Lower Caves 5647 | -7/Lower Caves | Build established: Mutant 5900 | -7/Lower Caves | Lost 4 parts (1n1u2w) 5901 | -7/Lower Caves | Attracted the attention of an 0b10 checkpoint 5923 | -7/Lower Caves | Core integrity fell below 50% 5955 | -7/Lower Caves | Core integrity fell below 20% 5982 | -7/Lower Caves | Lost 7 parts (2p4n1w) 6253 | -7/Lower Caves | Build established: Scout 6416 | -7/Lower Caves | Learned Factory trap positions 6425 | -7/Lower Caves | Learned location of Armory (-4) 6425 | -7/Lower Caves | Learned Research trap positions 6425 | -7/Lower Caves | Learned Armory trap positions 6425 | -7/Lower Caves | Learned Research garrison access intel 6425 | -7/Lower Caves | Learned Armory garrison access intel 7077 | -7/Lower Caves | Build established: Skirmisher 7820 | -7/Lower Caves | Learned 4 Factory zone layouts 8124 | -7/Lower Caves | Build established: Mutant 9148 | -7/Lower Caves | Discovered new exit (range 8) 9151 | -7/Lower Caves | Identified exit to Lower Caves 9152 | -7/Lower Caves | Entered another Lower Caves area 9236 | -7/Lower Caves | Discovered exit to Factory (range 18) 9268 | -7/Lower Caves | Entered Factory 9268 | -6/Factory | Evolved 2 slots: Utility x2 9270 | -6/Factory | Loaded intel: 106 trap records 9479 | -6/Factory | Discovered new exit (range 4) 9483 | -6/Factory | Identified exit to Lower Caves 9589 | -6/Factory | Build established: Skirmisher 9606 | -6/Factory | Discovered exit to Lower Caves (range 20) 9881 | -6/Factory | Discovered new exit (range 15) 9971 | -6/Factory | Found Prototype Launcher 9971 | -6/Factory | Identified Rocket Array 10114 | -6/Factory | Build established: Scavenger-Skirmisher 10373 | -6/Factory | Found Prototype Processor 10373 | -6/Factory | Identified Exp. Targeting Computer 10472 | -6/Factory | Build established: Skirmisher 10657 | -6/Factory | Entered Lower Caves 10767 | -6/Lower Caves | Found Imp. Powered Armor 10777 | -6/Lower Caves | Found Imp. Powered Armor 11055 | -6/Lower Caves | Build established: Mutant 12125 | -6/Lower Caves | Discovered new exit (range 24) 12180 | -6/Lower Caves | Identified exit to Lower Caves 12465 | -6/Lower Caves | Attracted the attention of an 0b10 base 12497 | -6/Lower Caves | Learned 4 Factory zone layouts 12679 | -6/Lower Caves | Learned location of 1 exit from Factory 12679 | -6/Lower Caves | Learned Research terminal intel 12679 | -6/Lower Caves | Learned Extension garrison access intel 12997 | -6/Lower Caves | Build established: Skirmisher 13375 | -6/Lower Caves | Build established: Mutant 13669 | -6/Lower Caves | Entered another Lower Caves area 13669 | -6/Lower Caves | Accompanied by 2 allies 13701 | -6/Lower Caves | Discovered new exit (range 8) 13799 | -6/Lower Caves | Build established: Skirmisher 14259 | -6/Lower Caves | Learned Factory security intel 14309 | -6/Lower Caves | Discovered new exit (range 7) 14319 | -6/Lower Caves | Identified exit to Data Miner 14376 | -6/Lower Caves | Build established: Derelict-Mutant 14396 | -6/Lower Caves | A Commander dispatched an escort 14408 | -6/Lower Caves | Learned Factory stockpile data 14408 | -6/Lower Caves | Learned Research stockpile data 14408 | -6/Lower Caves | Learned Factory garrison access intel 14692 | -6/Lower Caves | Attracted the attention of an 0b10 checkpoint 15065 | -6/Lower Caves | Entered Data Miner 15065 | -6/Data Miner | Accompanied by 2 allies 15065 | -6/Data Miner | Discovered new exit (range 6) 15074 | -6/Data Miner | Identified exit to Proximity Caves 15091 | -6/Data Miner | Met Data Miner 15114 | -6/Data Miner | Learned location of Section 7 (-2) 15114 | -6/Data Miner | Acquired the access code to Warlord's prototype stash 15132 | -6/Data Miner | Received God Mode back door access code from Data Miner 15174 | -6/Data Miner | Entered Proximity Caves 15174 | -5/Proximity Caves | Accompanied by 2 allies 15478 | -5/Proximity Caves | Build established: Skirmisher 15627 | -5/Proximity Caves | Received a Behemoth hack from an annoying Tinkerer 15768 | -5/Proximity Caves | Identified exit to Factory 15796 | -5/Proximity Caves | Build established: Mutant 16004 | -5/Proximity Caves | Escorted by Enhanced Grunt 16113 | -5/Proximity Caves | Attracted the attention of an 0b10 checkpoint 16190 | -5/Proximity Caves | Learned location of 1 exit from Factory 16453 | -5/Proximity Caves | Build established: Skirmisher 16533 | -5/Proximity Caves | Found Prototype Device 16533 | -5/Proximity Caves | Identified Exp. Thermal Shield 16716 | -5/Proximity Caves | Entered Factory 16716 | -5/Factory | Evolved 2 slots: Utility x1, Weapon x1 16717 | -5/Factory | Identified exit to Factory 16721 | -5/Factory | Loaded intel: 4 garrison access locations 16836 | -5/Factory | Spotted B-75 Beast 16840 | -5/Factory | Befriended a Behemoth using the annoying Tinkerer's hack 16954 | -5/Factory | Incoming assault squad redirected 17331 | -5/Factory | Identified exit to Upper Caves 17616 | -5/Factory | First assault squad dispatched 17635 | -5/Factory | Incoming assault squad redirected 17825 | -5/Factory | Incoming assault squad redirected 17846 | -5/Factory | Entered Upper Caves 17948 | -5/Upper Caves | Learned 4 Factory zone layouts 18024 | -5/Upper Caves | Attracted the attention of an 0b10 outpost 18057 | -5/Upper Caves | Destroyed 7 combat bots 18275 | -5/Upper Caves | Build established: Scavenger-Mutant 19124 | -5/Upper Caves | Discovered new exit (range 12) 19145 | -5/Upper Caves | Identified exit to Upper Caves 19922 | -5/Upper Caves | Entered another Upper Caves area 19922 | -5/Upper Caves | Accompanied by 3 allies 22596 | -5/Upper Caves | Attracted the attention of an 0b10 checkpoint 22702 | -5/Upper Caves | Discovered new exit (range 6) 22707 | -5/Upper Caves | Identified exit to Zhirov 23279 | -5/Upper Caves | Spotted B-75 Beast 23750 | -5/Upper Caves | Entered Zhirov 23750 | -5/Zhirov | Accompanied by 3 allies 23750 | -5/Zhirov | Discovered new exit (range 3) 23773 | -5/Zhirov | Met Zhirov 23802 | -5/Zhirov | Learned location of Testing (-3) 23814 | -5/Zhirov | Zhirov requested help retrieving the SGEMP Prototype 23837 | -5/Zhirov | Found Alien Artifact 23837 | -5/Zhirov | Identified Integrated Dissipator 23837 | -5/Zhirov | Installed Integrated Dissipator, increased core heat dissipation (+20) 23899 | -5/Zhirov | Build established: Mutant 23911 | -5/Zhirov | Found Alien Artifact 23997 | -5/Zhirov | Identified exit to Proximity Caves 23998 | -5/Zhirov | Entered Proximity Caves 23998 | -4/Proximity Caves | Accompanied by 3 allies 24174 | -4/Proximity Caves | Spotted B-86 Titan 25928 | -4/Proximity Caves | Destroyed B-86 Titan 25937 | -4/Proximity Caves | Lost 4 parts (4w) 25961 | -4/Proximity Caves | Learned location of 1 exit from Research 26724 | -4/Proximity Caves | Build established: Scavenger-Mutant 27670 | -4/Proximity Caves | Build established: Scavenger-Skirmisher 28473 | -4/Proximity Caves | Snuck into a huge 0b10 base via the rear entrance 28847 | -4/Proximity Caves | Build established: Commander-Mutant 29298 | -4/Proximity Caves | Discovered exit to Factory (range 8) 29335 | -4/Proximity Caves | Build established: Scavenger-Skirmisher 29715 | -4/Proximity Caves | Build established: Scavenger-Mutant 30426 | -4/Proximity Caves | Build established: Commander-Mutant 30913 | -4/Proximity Caves | Spotted B-86 Titan 31718 | -4/Proximity Caves | Destroyed B-86 Titan 32646 | -4/Proximity Caves | Build established: Commander-Skirmisher 32959 | -4/Proximity Caves | Learned Research interactive machine intel 33138 | -4/Proximity Caves | Build established: Commander-Mutant 33829 | -4/Proximity Caves | Entered Factory 33829 | -4/Factory | Accompanied by 10 allies 33829 | -4/Factory | Evolved 2 slots: Power x1, Propulsion x1 33830 | -4/Factory | Identified exit to Research 33830 | -4/Factory | Identified exit to Armory 33911 | -4/Factory | Garrison activated, responded to threat 33977 | -4/Factory | Identified exit to Garrison 34055 | -4/Factory | Spotted B-86 Titan 34218 | -4/Factory | Build established: Scavenger-Skirmisher 34280 | -4/Factory | P-70 Sage assimilated allied Assassin 7a 34390 | -4/Factory | Fabricated Lrn. Terrain Scanner (x1) 34579 | -4/Factory | First assault squad dispatched 34585 | -4/Factory | Identified exit to Upper Caves 34585 | -4/Factory | Identified exit to Extension 34604 | -4/Factory | Incoming assault squad redirected 34617 | -4/Factory | Sucked down chute 34617 | -4/Factory | Entered Waste 34617 | -4/Waste | Met up with 1 ally sucked down the chute earlier 34618 | -4/Waste | Joined by Warlord forces that had cleared the area 34647 | -4/Waste | Build established: Scavenger-Mutant 34866 | -4/Waste | Discovered new exit (range 16) 34975 | -4/Waste | Identified exit to Factory 34991 | -4/Waste | Entered Factory 34991 | -4/Factory | Accompanied by 21 allies 35194 | -4/Factory | Allied Derelicts emerged from ambush trap array 35237 | -4/Factory | Discovered exit to Extension (range 6) 35264 | -4/Factory | Entered Extension 35264 | -4/Extension | Accompanied by 21 allies 35278 | -4/Extension | Disrupted transfer network 35308 | -4/Extension | Rescued a captive Derelict 35309 | -4/Extension | Rescued a captive Derelict 35344 | -4/Extension | Rescued A7 35420 | -4/Extension | Rescued a captive Derelict 35457 | -4/Extension | Rescued a captive Derelict 35534 | -4/Extension | Spotted B-86 Titan 35546 | -4/Extension | Spotted B-86 Titan 35578 | -4/Extension | Befriended a Behemoth using the annoying Tinkerer's hack 35593 | -4/Extension | Extracted ID and sensor layout for unrecognized location from A7's data core 35597 | -4/Extension | Allies destroyed B-86 Titan 35627 | -4/Extension | Lost 6 parts (1n5w) 35667 | -4/Extension | Rescued a captive Derelict 35668 | -4/Extension | Build established: Scavenger-Skirmisher 35668 | -4/Extension | Discovered exit to Research (range 24) 35670 | -4/Extension | Rescued a captive Derelict 35704 | -4/Extension | Rescued a captive Derelict 35704 | -4/Extension | Rescued a captive Derelict 35869 | -4/Extension | Discovered new exit (range 16) 35871 | -4/Extension | Discovered exit to Research (range 14) 35904 | -4/Extension | Identified exit to Cetus 35927 | -4/Extension | Entered Cetus 35927 | -4/Cetus | Accompanied by 8 allies 35949 | -4/Cetus | Spotted Cetus Guard 35952 | -4/Cetus | Spotted Cetus Guard 35954 | -4/Cetus | Spotted Cetus Guard 35959 | -4/Cetus | Spotted Cetus Guard 35961 | -4/Cetus | Allies destroyed Cetus Guard 35966 | -4/Cetus | Allies destroyed Cetus Guard 35979 | -4/Cetus | Allies destroyed Cetus Guard 35997 | -4/Cetus | Destroyed Cetus Guard 36067 | -4/Cetus | Discovered new exit (range 16) 36084 | -4/Cetus | Identified exit to Archives 36085 | -4/Cetus | Entered Archives 36185 | -4/Archives | Unable to access archive contents 36187 | -4/Archives | Discovered new exit (range 16) 36199 | -4/Archives | Unable to access archive contents 36200 | -4/Archives | Discovered new exit (range 16) 36212 | -4/Archives | Unable to access archive contents 36213 | -4/Archives | Discovered exit to Research (range 16) 36240 | -4/Archives | Unable to access archive contents 36258 | -4/Archives | Identified exit to Hub_04(d) 36260 | -4/Archives | Entered Hub_04(d) 36313 | -4/Hub_04(d) | Incoming investigation squad redirected 36347 | -4/Hub_04(d) | Discovered exit to Research (range 19) 36468 | -4/Hub_04(d) | Discovered exit to Research (range 15) 36764 | -4/Hub_04(d) | Lost 5 parts (1n1u3w) 36785 | -4/Hub_04(d) | Discovered exit to Research (range 22) 37072 | -4/Hub_04(d) | Disrupted transfer network 37103 | -4/Hub_04(d) | Network Hub disabled 37114 | -4/Hub_04(d) | Spotted Lightning 37123 | -4/Hub_04(d) | Network Hub disabled 37123 | -4/Hub_04(d) | Spotted Lightning 37123 | -4/Hub_04(d) | Spotted Lightning 37139 | -4/Hub_04(d) | System corruption reached 10% 37153 | -4/Hub_04(d) | Entered Research 37153 | -3/Research | Evolved 2 slots: Utility x1, Weapon x1 37154 | -3/Research | Identified exit to Research 37155 | -3/Research | Loaded intel: 85 trap records 37157 | -3/Research | Loaded intel: 37 interactive machine locations 37158 | -3/Research | Loaded intel: 16 terminal locations 37159 | -3/Research | Loaded intel: 4 garrison access locations 37180 | -3/Research | Lost 9 parts (3p3n1u2w) 37298 | -3/Research | Fabricated Exp. Heat Sink? 37376 | -3/Research | Found Prototype Protection 37378 | -3/Research | Identified Centrium Heavy Armor Plating 37604 | -3/Research | Identified exit to Garrison 37604 | -3/Research | Entered Garrison 37612 | -3/Garrison | Installed Relay Interface Framework 37668 | -3/Garrison | Triggered checkpoint 37741 | -3/Garrison | Garrison Relay disabled 37883 | -3/Garrison | Crushed by falling debris 37906 | -3/Garrison | Discovered exit to Research (range 10) 38164 | -3/Garrison | Build established: Scavenger-Gunner 38490 | -3/Garrison | Triggered checkpoint 38511 | -3/Garrison | Garrison Relay disabled 38668 | -3/Garrison | Lost 3 parts (1n2w) 38856 | -3/Garrison | Spotted B-86 Titan 38899 | -3/Garrison | Destroyed B-86 Titan 39093 | -3/Garrison | Triggered checkpoint 39206 | -3/Garrison | Discovered exit to Research (range 10) 39277 | -3/Garrison | Build established: Scavenger-Mutant 39693 | -3/Garrison | Garrison Relay disabled 39982 | -3/Garrison | Triggered checkpoint 40125 | -3/Garrison | Discovered exit to Research (range 10) 40200 | -3/Garrison | Garrison Relay disabled 40599 | -3/Garrison | Entered Research 40599 | -2/Research | Evolved 2 slots: Propulsion x1, Utility x1 40664 | -2/Research | Discovered new exit (range 26) 40844 | -2/Research | Lost 3 parts (1u2w) 41825 | -2/Research | Build established: Scavenger-Gunner 41871 | -2/Research | Found Prototype Launcher 41871 | -2/Research | Identified Adv. Micro-nuke Launcher 42064 | -2/Research | Lost 3 parts (1n2w) 42093 | -2/Research | Destroyed 8 combat bots 42099 | -2/Research | First assault squad dispatched 42200 | -2/Research | Identified exit to Quarantine 42207 | -2/Research | Entered Quarantine 42264 | -2/Quarantine | Found Alien Artifact 42457 | -2/Quarantine | First assault squad dispatched 42539 | -2/Quarantine | Garrison activated, responded to threat 42676 | -2/Quarantine | Found Alien Slashing Weapon 42676 | -2/Quarantine | Identified Sigix Broadsword 42696 | -2/Quarantine | Met incapacitated Sigix Warrior 42696 | -2/Quarantine | Lockdown squad dispatched 42699 | -2/Quarantine | Acquired the access code to the Sigix quarantine chamber 42699 | -2/Quarantine | Central database locked down 42701 | -2/Quarantine | Unlocked Sigix quarantine chamber 42711 | -2/Quarantine | Identified Transdimensional Reconstructor 42711 | -2/Quarantine | Warped through subspace 42905 | -2/Quarantine | Lost 5 parts (1p2u2w) 42940 | -2/Quarantine | Found Alien Artifact 42940 | -2/Quarantine | Identified Matter Drive 42980 | -2/Quarantine | Incoming assault squad redirected 43048 | -2/Quarantine | Found Alien Artifact 43065 | -2/Quarantine | Found Alien Artifact 43065 | -2/Quarantine | Identified Core Reset Matrix 43065 | -2/Quarantine | Identified Hpw. Transdimensional Reconstructor 43065 | -2/Quarantine | Identified Subatomic Replicator 43065 | -2/Quarantine | Used Core Reset Matrix 43069 | -2/Quarantine | Sensed 11 artifacts in vicinity 43124 | -2/Quarantine | Build established: Scavenger-Mutant 43231 | -2/Quarantine | Discovered new exit (range 4) 43236 | -2/Quarantine | Identified exit to Access 43238 | -2/Quarantine | Entered Access 43238 | -1/Access | Evolved 2 slots: Utility x1, Weapon x1 43376 | -1/Access | Used Subatomic Replicator to replicate Hpw. Transdimensional Reconstructor 43407 | -1/Access | Warped through subspace 43652 | -1/Access | Build established: Scavenger-Executioner 43695 | -1/Access | Warped through subspace 43721 | -1/Access | Lost 5 parts (1p2n2w) 43815 | -1/Access | Lost 6 parts (2n4w) 43885 | -1/Access | Spotted B-99 Colossus 43986 | -1/Access | Lost 14 parts (2p3n3u6w) 44051 | -1/Access | Lost 4 parts (1p1n1u1w) 44107 | -1/Access | Lost 3 parts (1n2u) 44226 | -1/Access | Core integrity fell below 50% 44240 | -1/Access | Emitted hypermatrix ping 44245 | -1/Access | Assembled emerged from beneath the floor 44245 | -1/Access | Core integrity fell below 20% 44271 | -1/Access | Assembled emerged from beneath the floor 44291 | -1/Access | Lost 13 parts (3p3n5u2w) 44320 | -1/Access | Spotted B-99 Colossus 44322 | -1/Access | Assembled emerged from beneath the floor 44382 | -1/Access | Spotted B-99 Colossus 44383 | -1/Access | Destroyed by B-99 Colossus with Linear Accelerator Last Messages --------------- 44309_ Adv. Weapon Cycler destroyed. 44313_ Detected hypermatrix ping. 44319_ O-32 Director sends out distress signal. 44319_ O-32 Director: "IFF HANDSHAKE FAILED. SECURING TERMINAL." 44320_ Terminal disabled. 44320_ Slug penetrates Terminal. 44320_ Penetrated by Slug. 44320_ Slug penetrates Terminal. 44322_ Assembled emerge from beneath the floor. 44322_ System corrupted: Heat flow error (+265). 44323_ Slug penetrates Wall. 44323_ Slug penetrates as-67835. 44323_ Slug penetrates as-93897. 44327_ Slug penetrates Wall. 44352_ Slammed into K-01 Serf. 44354_ K-01 Serf destroyed. 44355_ Acquired 27 matter. 44374_ System corrupted: Matter fused (-8). 44376_ Penetrated by Slug. 44376_ Slug penetrates Wall. Map ----- +----------------------------------------------------+ | ?????????????????????????????????????????????????? | | ?????????????????????????????????????????????????? | | ?????????????????????????????????????????????????? | | ?????????????????????????????????????????????????? | | ?????????????????????????????????????????????????? | | ?????????????????????????????????????????????????? | | ?????????????????????????????????????????????????? | | ?????????????????????????????????????????????????? | | ?????????????????????????????????????????????????? | | ?????????????????????????????????????????????????? | | ???????????????????????? ?????????????????????? | | ???????????????????????? #????????????????????? | | ???????????????????????# #????????????????????? | | ???????????????????????# #????????????????????? | | ???????????????????????# #????????????????????? | | ???????????????????????# #????????????????????? | | ???????????????????????# #???######???????????? | | ???????????????????????# #??? ???????????? | | ???????????????????????# #?? BB "??????????? | | ???????????????????????# ### BB ???????????? | | ???????????????????????+ ?????????????? | | ???????????????????????+ ???????????????? | | ???????????????????????# ?????????????????? | | ???????????????????????# ???????????????????? | | ???????????????????????# #????????????????????? | | ???????????????????????# @ #????????????????????? | | ???????????????????????# #????????????????????? | | ???????????????????????# u#????????????????????? | | ???????????????????????# #????????????????????? | | ???????????????????????# #????????????????????? | | ???????????????????????# #????????????????????? | | ???????????????????????# #????????????????????? | | ???????????????????????# #????????????????????? | | ???????????????????????# ########?????????????? | | ???????????????????????# +?????????????? | | ???????????????????????# ########?????????????? | | ???????????????????????# #????????????????????? | | ???????????????????????# #????????????????????? | | ############????????#####+#####??????????????????? | | ########## #??????????????????? | | / #??????????????????? | | #### #### " #??????????????????? | | #### #??# #??#""" +??????????????????? | | ???# #??# #??# """ #??????????????????? | | ???# #??# #??# " #??????????????????? | | #### #??# #??# #??????????????????? | | #??# ??+ #??????????????????? | | #??#+#??###### ####??????????????????? | | #?????????????##?????????????????????? | | #????????????????????????????????????? | +----------------------------------------------------+ Best States ------------- Heat Dissipation 176 Energy Generation 89 Energy Capacity 850 Matter Stores 300 Matter Capacity 300 Sight Range 16 Robot Scan Range 16 Terrain Scan Range 24 Terrain Scan Density 210 Power Amplification 40 Additional Mass Support 9 Armor Coverage 600 Utility Shielding 66 Weapon Cycling 25 Phase Shifting 15 Evasion (%) 55 Targeting Accuracy 18 Target Analysis 8 Recoil Reduction 1 Offensive Hacking 14 Defensive Hacking 10 Item Schematics ----------------- None Robot Schematics ------------------ None Fabricated ------------ Lrn. Terrain Scanner | x1 | -4/Factory Exp. Heat Sink | x1 | -3/Research Alien Tech Used ----------------- Integrated Dissipator Sigix Broadsword Transdimensional Reconstructor Matter Drive Core Reset Matrix Subatomic Replicator High-powered Transdimensional Reconstructor Achievements -------------- Woof! Challenges ------------ None Game ------ Seed BeamAssembledGreatsword Manual? 0 Play Time 07:47:13 Cumulative 188.6 hours Start 2020.12.11 @ 12:46:57 End 2020.12.13 @ 11:09:42 Sessions 9 Manual Loads 0 Difficulty Rogue Special Mode None Game No. 56 Rogue 33 Adventurer 23 Explorer 0 Win Type - Total 6 Types 6/0/0/0/0/0/0/0/0 Lore% 82 Gallery% 83 Achievement% 66 Wizard Run 0 Options --------- ASCII 0 Keyboard 0 Movement Mouse Keybinds 0 Fullscreen 1 Font 18/SmallcapsGlow Map View 76x50 Tactical HUD 1 Map Filters NONE Filters NONE Steam 1 RUN: 0e89982d-a051-4f40-a1a7-10e90b4c953c